[Event "*** SCC Grand Prix: Titled Tuesday Blitz"]
[Site "Chess.com"]
[Date "2020.10.13"]
[Round "2"]
[White "chigorin28"]
[Black "ftorodent"]
[Result "1/2-1/2"]
[WhiteElo "2425"]
[BlackElo "2690"]
[TimeControl "180+1"]
[EndTime "10:19:15 PDT"]
[Termination "Game drawn - insufficient material"]

1. e4 {[%clk 0:03:00.9]} 1... c5 {[%clk 0:02:59.1]} 2. Nf3 {[%clk 0:03:00.6]}
2... e6 {[%clk 0:02:59.1]} 3. c3 {[%clk 0:03:00.4]} 3... Nf6 {[%clk 0:02:58.1]}
4. e5 {[%clk 0:03:00.4]} 4... Nd5 {[%clk 0:02:58.2]} 5. d4 {[%clk 0:03:01.3]}
5... cxd4 {[%clk 0:02:58.3]} 6. cxd4 {[%clk 0:03:02.2]} 6... d6 {[%clk
0:02:58.6]} 7. Bd3 {[%clk 0:03:01.7]} 7... Nc6 {[%clk 0:02:42.7]} 8. exd6 {[%clk
0:03:01]} 8... Bxd6 {[%clk 0:02:41.9]} 9. O-O {[%clk 0:03:01.2]} 9... O-O {[%clk
0:02:40.2]} 10. Nc3 {[%clk 0:03:01.6]} 10... Be7 {[%clk 0:02:36.8]} 11. Be3
{[%clk 0:02:31.3]} 11... Ncb4 {[%clk 0:02:03.2]} 12. Bb1 {[%clk 0:02:22.7]}
12... Nxc3 {[%clk 0:01:59.7]} 13. bxc3 {[%clk 0:02:22.7]} 13... Nd5 {[%clk
0:01:59.6]} 14. Qd3 {[%clk 0:02:22.4]} 14... g6 {[%clk 0:01:57.8]} 15. Bh6
{[%clk 0:02:20.1]} 15... Re8 {[%clk 0:01:58]} 16. c4 {[%clk 0:02:12.2]} 16...
Nf6 {[%clk 0:01:57.8]} 17. Rd1 {[%clk 0:02:05.5]} 17... Qd6 {[%clk 0:01:50.3]}
18. g3 {[%clk 0:01:23]} 18... Bf8 {[%clk 0:01:32.8]} 19. Bf4 {[%clk 0:01:22.7]}
19... Qd8 {[%clk 0:01:22.7]} 20. Bc2 {[%clk 0:01:13.7]} 20... Bd7 {[%clk
0:01:17.8]} 21. d5 {[%clk 0:01:11.2]} 21... exd5 {[%clk 0:01:16.5]} 22. cxd5
{[%clk 0:00:55.3]} 22... Bf5 {[%clk 0:01:11.2]} 23. Qb3 {[%clk 0:00:50.8]} 23...
Bxc2 {[%clk 0:01:05]} 24. Qxc2 {[%clk 0:00:50.8]} 24... Rc8 {[%clk 0:01:01]} 25.
Qb3 {[%clk 0:00:50.6]} 25... Qb6 {[%clk 0:00:52.5]} 26. Qxb6 {[%clk 0:00:47]}
26... axb6 {[%clk 0:00:52.1]} 27. Rab1 {[%clk 0:00:46.8]} 27... Nd7 {[%clk
0:00:49.6]} 28. Rd2 {[%clk 0:00:37.8]} 28... Bc5 {[%clk 0:00:46.1]} 29. Kf1
{[%clk 0:00:36.4]} 29... Ra8 {[%clk 0:00:41.9]} 30. Nd4 {[%clk 0:00:30.5]} 30...
Ra4 {[%clk 0:00:33.2]} 31. Nb3 {[%clk 0:00:28.7]} 31... Rc8 {[%clk 0:00:30]} 32.
Re2 {[%clk 0:00:22]} 32... Bf8 {[%clk 0:00:28]} 33. Rbe1 {[%clk 0:00:20]} 33...
Rca8 {[%clk 0:00:26]} 34. Re8 {[%clk 0:00:19.3]} 34... Rxa2 {[%clk 0:00:26.1]}
35. Rxa8 {[%clk 0:00:19.3]} 35... Rxa8 {[%clk 0:00:25.3]} 36. Rc1 {[%clk
0:00:19.8]} 36... Bc5 {[%clk 0:00:24]} 37. Nxc5 {[%clk 0:00:17]} 37... bxc5
{[%clk 0:00:23.8]} 38. Re1 {[%clk 0:00:16.6]} 38... Nf6 {[%clk 0:00:22.5]} 39.
d6 {[%clk 0:00:15.7]} 39... c4 {[%clk 0:00:21.2]} 40. Re7 {[%clk 0:00:14.6]}
40... c3 {[%clk 0:00:20.3]} 41. Rc7 {[%clk 0:00:14.3]} 41... Nd5 {[%clk
0:00:19.4]} 42. Rc4 {[%clk 0:00:09.6]} 42... Nxf4 {[%clk 0:00:18.5]} 43. gxf4
{[%clk 0:00:10.5]} 43... Rd8 {[%clk 0:00:17.9]} 44. Rxc3 {[%clk 0:00:08.6]}
44... Rxd6 {[%clk 0:00:18]} 45. Rb3 {[%clk 0:00:09.1]} 45... b6 {[%clk
0:00:17.6]} 46. Ke2 {[%clk 0:00:09.2]} 46... Kg7 {[%clk 0:00:17.4]} 47. Ke3
{[%clk 0:00:09.7]} 47... Kf6 {[%clk 0:00:17.5]} 48. Ke4 {[%clk 0:00:10.2]} 48...
Re6+ {[%clk 0:00:17.4]} 49. Kf3 {[%clk 0:00:08.3]} 49... Rc6 {[%clk 0:00:17.9]}
50. Ke4 {[%clk 0:00:07.7]} 50... Rc4+ {[%clk 0:00:17.4]} 51. Ke3 {[%clk
0:00:06.5]} 51... Kf5 {[%clk 0:00:15.5]} 52. Rb5+ {[%clk 0:00:06.1]} 52... Kg4
{[%clk 0:00:14.7]} 53. Rxb6 {[%clk 0:00:03.1]} 53... Rc3+ {[%clk 0:00:14.2]} 54.
Ke2 {[%clk 0:00:03.1]} 54... Rh3 {[%clk 0:00:12.8]} 55. Rf6 {[%clk 0:00:03.1]}
55... Rxh2 {[%clk 0:00:12.5]} 56. Rxf7 {[%clk 0:00:03.6]} 56... h5 {[%clk
0:00:10.7]} 57. Ke3 {[%clk 0:00:03.6]} 57... h4 {[%clk 0:00:09.4]} 58. Rf6
{[%clk 0:00:04]} 58... Kh5 {[%clk 0:00:09.7]} 59. f5 {[%clk 0:00:04.4]} 59... g5
{[%clk 0:00:08.7]} 60. Rf8 {[%clk 0:00:03.8]} 60... Rh3+ {[%clk 0:00:08.5]} 61.
f3 {[%clk 0:00:04.1]} 61... Kh6 {[%clk 0:00:07.3]} 62. Ke4 {[%clk 0:00:02.3]}
62... Rg3 {[%clk 0:00:06.8]} 63. Rf6+ {[%clk 0:00:02.7]} 63... Kh7 {[%clk
0:00:06.5]} 64. f4 {[%clk 0:00:02.8]} 64... Rg4 {[%clk 0:00:06]} 65. Ke5 {[%clk
0:00:03]} 65... Rxf4 {[%clk 0:00:05.8]} 66. Rf8 {[%clk 0:00:02.9]} 66... h3
{[%clk 0:00:05.1]} 67. Kf6 {[%clk 0:00:03.3]} 67... h2 {[%clk 0:00:04.6]} 68.
Rf7+ {[%clk 0:00:03.8]} 68... Kh6 {[%clk 0:00:04.8]} 69. Rf8 {[%clk 0:00:04]}
69... Kh5 {[%clk 0:00:04.9]} 70. Rh8+ {[%clk 0:00:03.6]} 70... Kg4 {[%clk
0:00:05.4]} 71. Rxh2 {[%clk 0:00:04.5]} 71... Rxf5+ {[%clk 0:00:05.9]} 72. Kg6
{[%clk 0:00:05]} 72... Rb5 {[%clk 0:00:05.1]} 73. Rg2+ {[%clk 0:00:04.5]} 73...
Kf4 {[%clk 0:00:05.1]} 74. Kh5 {[%clk 0:00:04.6]} 74... g4+ {[%clk 0:00:02.9]}
75. Kh4 {[%clk 0:00:04.9]} 75... Kf3 {[%clk 0:00:03.2]} 76. Rg3+ {[%clk
0:00:05]} 76... Kf2 {[%clk 0:00:02.8]} 77. Rxg4 {[%clk 0:00:05.1]} 77... Kf3
{[%clk 0:00:03.4]} 78. Rg3+ {[%clk 0:00:05.4]} 78... Kf2 {[%clk 0:00:04]} 79.
Rg4 {[%clk 0:00:06.3]} 79... Ke2 {[%clk 0:00:04.2]} 80. Rg2+ {[%clk 0:00:06.2]}
80... Kd3 {[%clk 0:00:04.5]} 81. Rg5 {[%clk 0:00:06.6]} 81... Kc4 {[%clk
0:00:04.3]} 82. Rxb5 {[%clk 0:00:05.6]} 82... Kxb5 {[%clk 0:00:04.6]} 1/2-1/2

[Event "*** SCC Grand Prix: Titled Tuesday Blitz"]
[Site "Chess.com"]
[Date "2020.10.13"]
[Round "2"]
[White "LyonBeast"]
[Black "kingnb"]
[Result "1/2-1/2"]
[WhiteElo "3020"]
[BlackElo "2622"]
[TimeControl "180+1"]
[EndTime "10:19:21 PDT"]
[Termination "Game drawn - insufficient material"]

1. d4 {[%clk 0:03:00.9]} 1... d6 {[%clk 0:02:34.3]} 2. e4 {[%clk 0:02:59.3]}
2... Nf6 {[%clk 0:02:33.8]} 3. Nc3 {[%clk 0:02:59.7]} 3... e5 {[%clk 0:02:34.1]}
4. Nge2 {[%clk 0:02:59.3]} 4... exd4 {[%clk 0:02:33.9]} 5. Nxd4 {[%clk
0:02:59.2]} 5... Be7 {[%clk 0:02:34.8]} 6. Qf3 {[%clk 0:02:56]} 6... O-O {[%clk
0:02:33.7]} 7. Nf5 {[%clk 0:02:56.1]} 7... Bxf5 {[%clk 0:02:29.3]} 8. Qxf5
{[%clk 0:02:57]} 8... Nc6 {[%clk 0:02:29.4]} 9. Bd3 {[%clk 0:02:57.1]} 9... Qd7
{[%clk 0:02:22.7]} 10. Qxd7 {[%clk 0:02:53.9]} 10... Nxd7 {[%clk 0:02:23.6]} 11.
Nd5 {[%clk 0:02:53.7]} 11... Bd8 {[%clk 0:02:24]} 12. f3 {[%clk 0:02:43.7]}
12... Nb6 {[%clk 0:02:15.5]} 13. Ne3 {[%clk 0:02:42.9]} 13... Nb4 {[%clk
0:02:15.3]} 14. Be2 {[%clk 0:02:28]} 14... Bg5 {[%clk 0:02:14.4]} 15. Kd1 {[%clk
0:02:28.2]} 15... Rad8 {[%clk 0:01:36.7]} 16. h4 {[%clk 0:02:05.1]} 16... Bh6
{[%clk 0:01:34.6]} 17. c4 {[%clk 0:01:36.8]} 17... c6 {[%clk 0:01:29.6]} 18. a3
{[%clk 0:01:33.5]} 18... Na6 {[%clk 0:01:26.7]} 19. b4 {[%clk 0:01:20.9]} 19...
Rfe8 {[%clk 0:01:19.9]} 20. Nf5 {[%clk 0:01:07.9]} 20... Bxc1 {[%clk 0:01:17]}
21. Rxc1 {[%clk 0:01:08.8]} 21... d5 {[%clk 0:01:12.8]} 22. exd5 {[%clk
0:01:08]} 22... Nxd5 {[%clk 0:01:01]} 23. cxd5 {[%clk 0:00:57.6]} 23... Rxd5+
{[%clk 0:01:01.9]} 24. Ke1 {[%clk 0:00:58.5]} 24... Rxf5 {[%clk 0:01:00.7]} 25.
Kf2 {[%clk 0:00:59.2]} 25... Nc7 {[%clk 0:00:59.8]} 26. Rhd1 {[%clk 0:00:59.8]}
26... Rfe5 {[%clk 0:00:39]} 27. Bc4 {[%clk 0:00:58.5]} 27... R5e7 {[%clk
0:00:39.4]} 28. h5 {[%clk 0:00:56.8]} 28... Ne6 {[%clk 0:00:30.9]} 29. g4 {[%clk
0:00:53.7]} 29... h6 {[%clk 0:00:25.2]} 30. Rc3 {[%clk 0:00:45.7]} 30... Nf8
{[%clk 0:00:15.1]} 31. Rd2 {[%clk 0:00:43.3]} 31... Rd7 {[%clk 0:00:15.1]} 32.
Rcd3 {[%clk 0:00:42.1]} 32... Rxd3 {[%clk 0:00:14.9]} 33. Rxd3 {[%clk 0:00:43]}
33... g6 {[%clk 0:00:10.1]} 34. hxg6 {[%clk 0:00:37.7]} 34... Nxg6 {[%clk
0:00:11]} 35. Bb3 {[%clk 0:00:33.6]} 35... Kg7 {[%clk 0:00:10.8]} 36. Kg3 {[%clk
0:00:30.6]} 36... Re2 {[%clk 0:00:06.2]} 37. Rd7 {[%clk 0:00:27.8]} 37... Re7
{[%clk 0:00:05.4]} 38. Rd3 {[%clk 0:00:27]} 38... Ne5 {[%clk 0:00:05.4]} 39. Rd8
{[%clk 0:00:25.1]} 39... Rd7 {[%clk 0:00:04.5]} 40. Re8 {[%clk 0:00:22.5]} 40...
Rd3 {[%clk 0:00:04.5]} 41. Rxe5 {[%clk 0:00:21.6]} 41... Rxb3 {[%clk 0:00:04.4]}
42. Re7 {[%clk 0:00:22.2]} 42... Rxa3 {[%clk 0:00:02.7]} 43. Rxb7 {[%clk
0:00:22.7]} 43... a5 {[%clk 0:00:03.3]} 44. bxa5 {[%clk 0:00:22.6]} 44... Rxa5
{[%clk 0:00:04.2]} 45. Rc7 {[%clk 0:00:23.2]} 45... Rc5 {[%clk 0:00:04.7]} 46.
f4 {[%clk 0:00:23.1]} 46... Rc3+ {[%clk 0:00:05]} 47. Kh4 {[%clk 0:00:23.4]}
47... Rc4 {[%clk 0:00:05.9]} 48. f5 {[%clk 0:00:23.2]} 48... Rc1 {[%clk
0:00:05.6]} 49. Kg3 {[%clk 0:00:22.6]} 49... Rc3+ {[%clk 0:00:05.8]} 50. Kf4
{[%clk 0:00:22.8]} 50... Rc4+ {[%clk 0:00:06.7]} 51. Ke5 {[%clk 0:00:22.9]}
51... Rxg4 {[%clk 0:00:06.4]} 52. Rxc6 {[%clk 0:00:23.4]} 52... h5 {[%clk
0:00:07]} 53. Rc8 {[%clk 0:00:23.6]} 53... h4 {[%clk 0:00:07.2]} 54. f6+ {[%clk
0:00:24]} 54... Kh6 {[%clk 0:00:06.2]} 55. Kd6 {[%clk 0:00:18.9]} 55... Re4
{[%clk 0:00:05.5]} 56. Kd5 {[%clk 0:00:18.3]} 56... Re6 {[%clk 0:00:05.3]} 57.
Rg8 {[%clk 0:00:18.7]} 57... Rxf6 {[%clk 0:00:05]} 58. Ke4 {[%clk 0:00:18.6]}
58... Kh5 {[%clk 0:00:04.7]} 59. Ke3 {[%clk 0:00:18.3]} 59... Rg6 {[%clk
0:00:04.5]} 60. Rh8+ {[%clk 0:00:17.4]} 60... Kg4 {[%clk 0:00:04.4]} 61. Kf2
{[%clk 0:00:17.9]} 61... f5 {[%clk 0:00:04.7]} 62. Kg2 {[%clk 0:00:18.1]} 62...
f4 {[%clk 0:00:04.1]} 63. Kh2 {[%clk 0:00:17.8]} 63... Re6 {[%clk 0:00:04]} 64.
Rg8+ {[%clk 0:00:17.8]} 64... Kf3 {[%clk 0:00:04.5]} 65. Ra8 {[%clk 0:00:17.7]}
65... Re2+ {[%clk 0:00:04.8]} 66. Kh3 {[%clk 0:00:16.7]} 66... Kf2 {[%clk
0:00:05.3]} 67. Kh2 {[%clk 0:00:16.3]} 67... f3 {[%clk 0:00:05.7]} 68. Kh3
{[%clk 0:00:14.5]} 68... Re1 {[%clk 0:00:04.9]} 69. Ra2+ {[%clk 0:00:14.3]}
69... Kf1 {[%clk 0:00:05.4]} 70. Kxh4 {[%clk 0:00:13.7]} 70... f2 {[%clk
0:00:05.3]} 71. Kg3 {[%clk 0:00:13.5]} 71... Re3+ {[%clk 0:00:05.3]} 72. Kh2
{[%clk 0:00:14.1]} 72... Ke1 {[%clk 0:00:04.7]} 73. Ra1+ {[%clk 0:00:14.5]}
73... Ke2 {[%clk 0:00:05]} 74. Kg2 {[%clk 0:00:15]} 74... Rd3 {[%clk 0:00:02.1]}
75. Ra2+ {[%clk 0:00:14.3]} 75... Rd2 {[%clk 0:00:03]} 76. Ra1 {[%clk
0:00:13.5]} 76... Rd3 {[%clk 0:00:01.9]} 77. Ra2+ {[%clk 0:00:13.4]} 77... Rd2
{[%clk 0:00:02.5]} 78. Ra1 {[%clk 0:00:13.9]} 78... Rd1 {[%clk 0:00:03.1]} 79.
Rxd1 {[%clk 0:00:13.5]} 79... Kxd1 {[%clk 0:00:03.3]} 80. Kf1 {[%clk 0:00:14.4]}
80... Kd2 {[%clk 0:00:02.8]} 81. Kxf2 {[%clk 0:00:15.3]} 1/2-1/2

[Event "*** SCC Grand Prix: Titled Tuesday Blitz"]
[Site "Chess.com"]
[Date "2020.10.13"]
[Round "2"]
[White "Ze-Pequeno"]
[Black "AttilaTurzo"]
[Result "1/2-1/2"]
[WhiteElo "2146"]
[BlackElo "2392"]
[TimeControl "180+1"]
[EndTime "10:19:24 PDT"]
[Termination "Game drawn by repetition"]

1. e4 {[%clk 0:03:00.4]} 1... c5 {[%clk 0:01:30.5]} 2. Nf3 {[%clk 0:02:48.8]}
2... Nc6 {[%clk 0:01:24.7]} 3. d4 {[%clk 0:02:48.8]} 3... cxd4 {[%clk
0:01:25.6]} 4. Nxd4 {[%clk 0:02:49.4]} 4... Nf6 {[%clk 0:01:26.5]} 5. Nc3 {[%clk
0:02:49.2]} 5... d6 {[%clk 0:01:27.1]} 6. Bg5 {[%clk 0:02:48.5]} 6... e6 {[%clk
0:01:27.3]} 7. Qd2 {[%clk 0:02:48.3]} 7... a6 {[%clk 0:01:28]} 8. O-O-O {[%clk
0:02:47.6]} 8... Bd7 {[%clk 0:01:28.6]} 9. f4 {[%clk 0:02:45.7]} 9... b5 {[%clk
0:01:29.1]} 10. Bxf6 {[%clk 0:02:11.3]} 10... gxf6 {[%clk 0:01:30]} 11. Kb1
{[%clk 0:02:08.6]} 11... Qb6 {[%clk 0:01:16.2]} 12. Nxc6 {[%clk 0:02:05.2]}
12... Bxc6 {[%clk 0:01:15.6]} 13. f5 {[%clk 0:02:05.7]} 13... Be7 {[%clk
0:01:13.9]} 14. Bd3 {[%clk 0:01:50.8]} 14... b4 {[%clk 0:01:12.9]} 15. Ne2
{[%clk 0:01:49.8]} 15... e5 {[%clk 0:01:13.3]} 16. Ng3 {[%clk 0:01:40]} 16... h5
{[%clk 0:01:13]} 17. Rhe1 {[%clk 0:01:21.5]} 17... h4 {[%clk 0:01:11.9]} 18. Nf1
{[%clk 0:01:21.9]} 18... Bf8 {[%clk 0:01:06.4]} 19. Qe2 {[%clk 0:01:17.6]} 19...
Ke7 {[%clk 0:01:00.9]} 20. Bc4 {[%clk 0:01:17.4]} 20... Rc8 {[%clk 0:00:55]} 21.
Ne3 {[%clk 0:01:14.5]} 21... Bh6 {[%clk 0:00:52.9]} 22. Nd5+ {[%clk 0:01:13.3]}
22... Bxd5 {[%clk 0:00:52.7]} 23. Bxd5 {[%clk 0:01:13.1]} 23... Bf4 {[%clk
0:00:50.8]} 24. h3 {[%clk 0:01:12.5]} 24... a5 {[%clk 0:00:47.5]} 25. Rd3 {[%clk
0:01:08.4]} 25... a4 {[%clk 0:00:44.7]} 26. Red1 {[%clk 0:01:07.8]} 26... Rc5
{[%clk 0:00:40]} 27. b3 {[%clk 0:01:04.2]} 27... a3 {[%clk 0:00:37.3]} 28. Bc4
{[%clk 0:00:53.2]} 28... Rd8 {[%clk 0:00:34.4]} 29. Rd5 {[%clk 0:00:45.9]} 29...
Bg5 {[%clk 0:00:31]} 30. Qd3 {[%clk 0:00:45.2]} 30... Ra5 {[%clk 0:00:23]} 31.
Rxa5 {[%clk 0:00:21.1]} 31... Qxa5 {[%clk 0:00:23.9]} 32. Bd5 {[%clk 0:00:19.6]}
32... Qb6 {[%clk 0:00:20.4]} 33. Bc4 {[%clk 0:00:20]} 33... Be3 {[%clk
0:00:19.9]} 34. Qd5 {[%clk 0:00:19.4]} 34... Rf8 {[%clk 0:00:20]} 35. Rd3 {[%clk
0:00:17.5]} 35... Bd4 {[%clk 0:00:20.1]} 36. Rd1 {[%clk 0:00:14.5]} 36... Bc5
{[%clk 0:00:19.9]} 37. Rd3 {[%clk 0:00:14.2]} 37... Qc7 {[%clk 0:00:18.9]} 38.
Rd1 {[%clk 0:00:13.9]} 38... Qc8 {[%clk 0:00:19.3]} 39. Rd3 {[%clk 0:00:13.9]}
39... Qa8 {[%clk 0:00:19.5]} 40. Qxa8 {[%clk 0:00:12.5]} 40... Rxa8 {[%clk
0:00:20.4]} 41. Rd2 {[%clk 0:00:12.6]} 41... Rg8 {[%clk 0:00:20.5]} 42. Re2
{[%clk 0:00:13]} 42... Rg3 {[%clk 0:00:20.6]} 43. Kc1 {[%clk 0:00:13.2]} 43...
Bd4 {[%clk 0:00:20.3]} 44. Kd1 {[%clk 0:00:13.3]} 44... Rc3 {[%clk 0:00:19.5]}
45. Bd3 {[%clk 0:00:12.5]} 45... Bg1 {[%clk 0:00:18.3]} 46. Re1 {[%clk
0:00:12.5]} 46... Bh2 {[%clk 0:00:18.3]} 47. Re2 {[%clk 0:00:13]} 47... Bf4
{[%clk 0:00:18.5]} 48. Rf2 {[%clk 0:00:12.9]} 48... Rc5 {[%clk 0:00:18.1]} 49.
Re2 {[%clk 0:00:13.2]} 49... d5 {[%clk 0:00:18.2]} 50. exd5 {[%clk 0:00:13]}
50... Rxd5 {[%clk 0:00:19.1]} 51. Ke1 {[%clk 0:00:13.2]} 51... Kd6 {[%clk
0:00:18.6]} 52. Kf2 {[%clk 0:00:13.4]} 52... Kc5 {[%clk 0:00:18.5]} 53. Kf3
{[%clk 0:00:13.8]} 53... Rd8 {[%clk 0:00:18.3]} 54. Re4 {[%clk 0:00:13.6]} 54...
Rd4 {[%clk 0:00:16.6]} 55. Ke2 {[%clk 0:00:10.6]} 55... Bg5 {[%clk 0:00:15.9]}
56. Kf3 {[%clk 0:00:10.4]} 56... Kd5 {[%clk 0:00:15.5]} 57. Bc4+ {[%clk
0:00:10.2]} 57... Kc5 {[%clk 0:00:14.3]} 58. Bxf7 {[%clk 0:00:09.9]} 58... Rd2
{[%clk 0:00:14.3]} 59. Rc4+ {[%clk 0:00:09.8]} 59... Kb5 {[%clk 0:00:14.8]} 60.
Be8+ {[%clk 0:00:09.7]} 60... Kb6 {[%clk 0:00:14.7]} 61. Rxb4+ {[%clk
0:00:08.6]} 61... Kc7 {[%clk 0:00:15.2]} 62. Rc4+ {[%clk 0:00:08.8]} 62... Kd6
{[%clk 0:00:15.8]} 63. Bg6 {[%clk 0:00:08.5]} 63... Rd1 {[%clk 0:00:13.1]} 64.
Ra4 {[%clk 0:00:08.2]} 64... Rf1+ {[%clk 0:00:12]} 65. Ke2 {[%clk 0:00:07.8]}
65... Rc1 {[%clk 0:00:11.5]} 66. Rxa3 {[%clk 0:00:07.2]} 66... Rxc2+ {[%clk
0:00:11.9]} 67. Kf3 {[%clk 0:00:07.7]} 67... Rc3+ {[%clk 0:00:11.5]} 68. Kf2
{[%clk 0:00:08]} 68... Rc2+ {[%clk 0:00:11]} 69. Kf3 {[%clk 0:00:08.3]} 69...
Rc3+ {[%clk 0:00:11.2]} 70. Kf2 {[%clk 0:00:08.5]} 70... Be3+ {[%clk 0:00:11.1]}
71. Ke2 {[%clk 0:00:08.4]} 71... Bf4 {[%clk 0:00:08.8]} 72. Ra6+ {[%clk
0:00:08.2]} 72... Kc5 {[%clk 0:00:08.5]} 73. Rxf6 {[%clk 0:00:06.2]} 73... Kd4
{[%clk 0:00:07.3]} 74. Rd6+ {[%clk 0:00:05.9]} 74... Kc5 {[%clk 0:00:07.4]} 75.
Rd8 {[%clk 0:00:05.2]} 75... e4 {[%clk 0:00:07.4]} 76. f6 {[%clk 0:00:04.9]}
76... Rc2+ {[%clk 0:00:07.5]} 77. Kd1 {[%clk 0:00:05.3]} 77... Rc1+ {[%clk
0:00:06.8]} 78. Ke2 {[%clk 0:00:05.4]} 78... Rc2+ {[%clk 0:00:06.9]} 79. Kd1
{[%clk 0:00:05.7]} 79... Rc1+ {[%clk 0:00:07.2]} 80. Ke2 {[%clk 0:00:06.1]}
80... Rc2+ {[%clk 0:00:07.7]} 1/2-1/2

[Event "*** SCC Grand Prix: Titled Tuesday Blitz"]
[Site "Chess.com"]
[Date "2020.10.13"]
[Round "2"]
[White "Nikolakis2014"]
[Black "juancruzarias"]
[Result "1/2-1/2"]
[WhiteElo "2731"]
[BlackElo "2516"]
[TimeControl "180+1"]
[EndTime "10:19:45 PDT"]
[Termination "Game drawn by stalemate"]

1. Nf3 {[%clk 0:03:00.9]} 1... Nf6 {[%clk 0:03:00]} 2. c4 {[%clk 0:03:00.9]}
2... c5 {[%clk 0:02:59.9]} 3. Nc3 {[%clk 0:03:00.1]} 3... e6 {[%clk 0:02:58.4]}
4. e3 {[%clk 0:02:57.9]} 4... Nc6 {[%clk 0:02:54.6]} 5. d4 {[%clk 0:02:57.9]}
5... d5 {[%clk 0:02:54.4]} 6. cxd5 {[%clk 0:02:58.1]} 6... exd5 {[%clk
0:02:54.3]} 7. Bb5 {[%clk 0:02:55.9]} 7... Be7 {[%clk 0:02:43.4]} 8. dxc5 {[%clk
0:02:50.1]} 8... Bxc5 {[%clk 0:02:39.2]} 9. O-O {[%clk 0:02:49.9]} 9... O-O
{[%clk 0:02:39]} 10. b3 {[%clk 0:02:49.3]} 10... a6 {[%clk 0:02:38.1]} 11. Bxc6
{[%clk 0:02:47.4]} 11... bxc6 {[%clk 0:02:39]} 12. h3 {[%clk 0:02:46.5]} 12...
Re8 {[%clk 0:02:35.7]} 13. Bb2 {[%clk 0:02:44.2]} 13... Bf5 {[%clk 0:02:32.4]}
14. Rc1 {[%clk 0:02:41.9]} 14... Bd6 {[%clk 0:02:21.4]} 15. Na4 {[%clk
0:02:34.1]} 15... Rc8 {[%clk 0:02:18.1]} 16. Nc5 {[%clk 0:02:11.2]} 16... Bxc5
{[%clk 0:02:15.5]} 17. Rxc5 {[%clk 0:02:10.8]} 17... Ne4 {[%clk 0:02:12.4]} 18.
Qd4 {[%clk 0:01:56.5]} 18... f6 {[%clk 0:02:01.7]} 19. Rcc1 {[%clk 0:01:56]}
19... Qd7 {[%clk 0:02:01.6]} 20. Qd1 {[%clk 0:01:14.9]} 20... c5 {[%clk
0:01:53.2]} 21. Nd2 {[%clk 0:01:00.3]} 21... Ng5 {[%clk 0:01:52.4]} 22. Nf3
{[%clk 0:00:54.1]} 22... Ne4 {[%clk 0:01:50.8]} 23. Nh4 {[%clk 0:00:54.2]} 23...
Be6 {[%clk 0:01:31.6]} 24. Qh5 {[%clk 0:00:51.3]} 24... g6 {[%clk 0:01:21.1]}
25. Qf3 {[%clk 0:00:49.7]} 25... f5 {[%clk 0:01:19.1]} 26. Qe2 {[%clk
0:00:47.3]} 26... f4 {[%clk 0:01:07]} 27. Rfd1 {[%clk 0:00:41.4]} 27... Qe7
{[%clk 0:01:02.6]} 28. Nf3 {[%clk 0:00:39.8]} 28... fxe3 {[%clk 0:01:01.4]} 29.
Qxe3 {[%clk 0:00:39.8]} 29... Rf8 {[%clk 0:00:42.8]} 30. Re1 {[%clk 0:00:37.1]}
30... Rce8 {[%clk 0:00:41.1]} 31. Rcd1 {[%clk 0:00:36.1]} 31... Qf7 {[%clk
0:00:36]} 32. Re2 {[%clk 0:00:27]} 32... Qf4 {[%clk 0:00:33.6]} 33. Qxf4 {[%clk
0:00:25.3]} 33... Rxf4 {[%clk 0:00:34.5]} 34. Ne5 {[%clk 0:00:25.4]} 34... Rf5
{[%clk 0:00:33.1]} 35. Ng4 {[%clk 0:00:25.1]} 35... Kf8 {[%clk 0:00:25.7]} 36.
Rde1 {[%clk 0:00:23.7]} 36... Bd7 {[%clk 0:00:24.7]} 37. f3 {[%clk 0:00:23.7]}
37... Nd6 {[%clk 0:00:24.9]} 38. Ne5 {[%clk 0:00:23.6]} 38... Bb5 {[%clk
0:00:24.5]} 39. Rd2 {[%clk 0:00:15.8]} 39... d4 {[%clk 0:00:25]} 40. f4 {[%clk
0:00:14.9]} 40... g5 {[%clk 0:00:22.7]} 41. Ba3 {[%clk 0:00:14.8]} 41... Nb7
{[%clk 0:00:21]} 42. g3 {[%clk 0:00:13.8]} 42... gxf4 {[%clk 0:00:21.3]} 43.
gxf4 {[%clk 0:00:13.8]} 43... Ke7 {[%clk 0:00:20.5]} 44. Rxd4 {[%clk 0:00:13.3]}
44... Kf6 {[%clk 0:00:19.5]} 45. Rde4 {[%clk 0:00:12.6]} 45... Rg8+ {[%clk
0:00:19.8]} 46. Kf2 {[%clk 0:00:12.4]} 46... Nd6 {[%clk 0:00:17.8]} 47. Ng4+
{[%clk 0:00:12.5]} 47... Rxg4 {[%clk 0:00:17.2]} 48. hxg4 {[%clk 0:00:12.3]}
48... Nxe4+ {[%clk 0:00:18.1]} 49. Rxe4 {[%clk 0:00:12.6]} 49... Rd5 {[%clk
0:00:19]} 50. Bb2+ {[%clk 0:00:12.4]} 50... Kf7 {[%clk 0:00:18.9]} 51. Be5
{[%clk 0:00:11]} 51... Rd2+ {[%clk 0:00:18.9]} 52. Kg3 {[%clk 0:00:11.6]} 52...
Rxa2 {[%clk 0:00:19.8]} 53. Kh4 {[%clk 0:00:12.2]} 53... Ra3 {[%clk 0:00:19]}
54. Kg5 {[%clk 0:00:12.4]} 54... Rxb3 {[%clk 0:00:19.4]} 55. Bd6 {[%clk
0:00:12.9]} 55... Rd3 {[%clk 0:00:17.4]} 56. Re7+ {[%clk 0:00:12.6]} 56... Kg8
{[%clk 0:00:18.1]} 57. Be5 {[%clk 0:00:11.5]} 57... Rd7 {[%clk 0:00:17.9]} 58.
Re8+ {[%clk 0:00:11.6]} 58... Kf7 {[%clk 0:00:18.5]} 59. Rc8 {[%clk 0:00:12.3]}
59... c4 {[%clk 0:00:18]} 60. f5 {[%clk 0:00:12.4]} 60... Re7 {[%clk 0:00:16.9]}
61. Kf4 {[%clk 0:00:12.5]} 61... h6 {[%clk 0:00:16.4]} 62. Rh8 {[%clk
0:00:12.5]} 62... Rd7 {[%clk 0:00:11.3]} 63. Rxh6 {[%clk 0:00:12.3]} 63... Rd3
{[%clk 0:00:11.4]} 64. g5 {[%clk 0:00:12.4]} 64... c3 {[%clk 0:00:11.3]} 65. g6+
{[%clk 0:00:12.6]} 65... Ke7 {[%clk 0:00:11.8]} 66. Rh7+ {[%clk 0:00:11.9]}
66... Kd8 {[%clk 0:00:11.5]} 67. g7 {[%clk 0:00:12.2]} 67... Bc4 {[%clk
0:00:12.1]} 68. Rh8+ {[%clk 0:00:11.3]} 68... Kd7 {[%clk 0:00:12]} 69. Bxc3
{[%clk 0:00:10.8]} 69... Rxc3 {[%clk 0:00:12.1]} 70. f6 {[%clk 0:00:11.4]} 70...
Rc1 {[%clk 0:00:12.6]} 71. Kg5 {[%clk 0:00:10.7]} 71... Rg1+ {[%clk 0:00:12.7]}
72. Kf5 {[%clk 0:00:10.5]} 72... Rf1+ {[%clk 0:00:13.2]} 73. Kg6 {[%clk
0:00:10.2]} 73... Rg1+ {[%clk 0:00:13.3]} 74. Kf5 {[%clk 0:00:10.6]} 74... Rf1+
{[%clk 0:00:13.7]} 75. Ke5 {[%clk 0:00:10.9]} 75... Re1+ {[%clk 0:00:14]} 76.
Kd4 {[%clk 0:00:11.1]} 76... Bf7 {[%clk 0:00:14.2]} 77. Rf8 {[%clk 0:00:11.2]}
77... Ke6 {[%clk 0:00:12.9]} 78. g8=Q {[%clk 0:00:11.3]} 78... Bxg8 {[%clk
0:00:13.2]} 79. Re8+ {[%clk 0:00:11.7]} 79... Kxf6 {[%clk 0:00:13.2]} 80. Rxe1
{[%clk 0:00:12.3]} 80... Be6 {[%clk 0:00:13.6]} 81. Kc5 {[%clk 0:00:12.8]} 81...
a5 {[%clk 0:00:14.5]} 82. Ra1 {[%clk 0:00:11.2]} 82... Bf5 {[%clk 0:00:14.8]}
83. Rxa5 {[%clk 0:00:11.8]} 83... Kg7 {[%clk 0:00:14.7]} 84. Kd6 {[%clk
0:00:12.3]} 84... Bg6 {[%clk 0:00:15.6]} 85. Rg5 {[%clk 0:00:12.2]} 85... Kf6
{[%clk 0:00:12.9]} 86. Rg1 {[%clk 0:00:12.7]} 86... Kg7 {[%clk 0:00:13.8]} 87.
Ke7 {[%clk 0:00:10.9]} 87... Kh7 {[%clk 0:00:11.7]} 88. Kf6 {[%clk 0:00:11]}
88... Bc2 {[%clk 0:00:11.4]} 89. Rg2 {[%clk 0:00:10]} 89... Bd3 {[%clk
0:00:11.1]} 90. Rg7+ {[%clk 0:00:09.9]} 90... Kh8 {[%clk 0:00:11.3]} 91. Rg3
{[%clk 0:00:09.7]} 91... Bc2 {[%clk 0:00:11.7]} 92. Kf7 {[%clk 0:00:09.1]} 92...
Bb1 {[%clk 0:00:11.1]} 93. Rh3+ {[%clk 0:00:08.6]} 93... Bh7 {[%clk 0:00:11.1]}
94. Rh6 {[%clk 0:00:08.4]} 1/2-1/2